Workbook

Sheet Disclaimer
A17: Introduction and Disclaimer

Sheet Main Sheet (hidden)
B2: Key | D2: Test 1 - Exploring the impact of timeframe | O2: Test 2 - Exploring implementation test as an identifier of poor total investment performers | AE2: Test 3 - Identifying 'bad' implementers in the presence of benchmarking noise | AP2: Test 4 - Aggregated test | BG2: Test 5 - Through-time test
B3: Input required
B4: Automatic calculations | E4: Timeframe | F4: 8 | G4: yrs | O4: Timeframe | P4: 8 | Q4: yrs | AE4: Timeframe | AF4: 8 | AG4: yrs | AP4: Timeframe | AQ4: 8 | AR4: yrs | BG4: Full Test Period | BH4: 8 | BI4: yrs
B5: Results | E5: Threshold | F5: -0.005 | O5: Threshold | P5: -0.005 | AE5: Threshold | AF5: -0.005 | AP5: Threshold | AQ5: -0.005 | BG5: Threshold | BH5: -0.005
F7: Good fund | G7: Bad fund | P7: Risk / AA | Q7: Implementation | R7: Total | AF7: Good fund | AG7: Bad fund | AQ7: Risk and AA | AR7: Implementation | AS7: Total | BG7: Lookback Period | BH7: 6 | BI7: yrs
E8: E(Ret) | F8: 0 | G8: -0.0075 | O8: E(Ret) | P8: 0 | Q8: 0 | R8: =SUM(P8:Q8) -> 0 | S8: =AVERAGE(R16:R10015) -> -3.218752297e-05 | T8: (This number should be close to E(Ret)) | AE8: E(Ret) | AF8: 0 | AG8: -0.0075 | AP8: E(Ret) | AQ8: -0.0075 | AR8: 0 | AS8: =SUM(AQ8:AR8) -> -0.0075 | AT8: =AVERAGE(AS16:AS10015) -> -0.007414592785 | AU8: (This number should be close to E(Ret)) | BG8: Ann. Performance to date: | BH8: -0.005
E9: Ann Std Dev | F9: 0.036 | G9: 0.036 | O9: Ann Std Dev | P9: 0.007 | Q9: 0.007 | R9: =SQRT(P9^2+Q9^2) -> 0.009899494937 | AE9: Ann Std Dev (Implementation) | AF9: 0.007 | AG9: 0.007 | AP9: Ann Std Dev (Implementation) | AQ9: 0.007 | AR9: 0.007 | AS9: =SQRT(AQ9^2+AR9^2) -> 0.009899494937
E10: Timeframe adjusted vol | F10: =F9*SQRT($F$4)/$F$4 -> 0.01272792206 | G10: =G9*SQRT($F$4)/$F$4 -> 0.01272792206 | O10: Timeframe adjusted vol | P10: =P9*SQRT($P$4)/$P$4 -> 0.002474873734 | Q10: =Q9*SQRT($P$4)/$P$4 -> 0.002474873734 | R10: =SQRT(P10^2+Q10^2) -> 0.0035 | S10: =STDEV(R16:R10015) -> 0.003556162604 | T10: (This number should be close to adj. vol.) | AE10: Ann Std Dev (Noise) | AF10: 0.007 | AG10: =AF10 -> 0.007 | AP10: Ann Std Dev (Noise) | AQ10: 0 | AR10: 0.036 | AS10: =SQRT(AQ10^2+AR10^2) -> 0.036 | BG10: Remaining Timeframe | BH10: =BH4-BH7 -> 2 | BI10: yrs
O11: Testing (E(Ret)) | P11: =AVERAGE(P16:P10015) -> -1.458687691e-05 | Q11: =AVERAGE(Q16:Q10015) -> -1.778005236e-05 | R11: (These numbers should be close to E(Ret)) | X11: Results from 10,000 simulations: | AE11: Ann Std Dev (Total) | AF11: =SQRT(AF9^2+AF10^2) -> 0.009899494937 | AG11: =SQRT(AG9^2+AG10^2) -> 0.009899494937 | AP11: Ann Std Dev (Total) | AQ11: =SQRT(AQ9^2+AQ10^2) -> 0.007 | AR11: =SQRT(AR9^2+AR10^2) -> 0.03667424164 | AS11: =SQRT(AQ11^2+AR11^2) -> 0.03733630941 | AY11: Results from 10,000 simulations: | BG11: Remaining Threshold | BH11: =(BH4*BH5-BH7*BH8)/BH10 -> -0.005
D12: Mistakes: probability of mistakenly identifying a 'good' fund as 'bad'. | F12: =_xlfn.NORM.DIST($F$5,F8,F10,TRUE) -> 0.3472199003 | G12: =_xlfn.NORM.DIST($F$5,G8,G10,TRUE) -> 0.577858711 | O12: Testing (adj. vol.) | P12: =STDEV(P16:P10015) -> 0.002484073629 | Q12: =STDEV(Q16:Q10015) -> 0.00247328366 | R12: (These numbers should be close to adj. vol.) | X12: Expected number of 'Bad' funds: | Y12: =IF(R8<=P5,10000,0) -> 0 | AE12: Timeframe adjusted vol | AF12: =AF11*SQRT($AF$4)/$AF$4 -> 0.0035 | AG12: =AG11*SQRT($AF$4)/$AF$4 -> 0.0035 | AP12: Timeframe adjusted vol | AQ12: =AQ11*SQRT($AQ$4)/$AQ$4 -> 0.002474873734 | AR12: =AR11*SQRT($AQ$4)/$AQ$4 -> 0.01296630248 | AS12: =SQRT(AQ12^2+AR12^2) -> 0.01320037878 | AT12: =STDEV(AS16:AS10015) -> 0.01304106139 | AU12: (This number should be close to adj. vol.) | AY12: Expected number of 'Bad' funds: | AZ12: =IF(AS8<=AQ5,10000,0) -> 10000
G13: =1-G12 -> 0.422141289 | H13: Effectiveness: probability of failing to identify a 'bad' fund. | X13: # simulations of 'Bad' Total Performance breaching Threshold: | Y13: =SUM(S16:S10015) -> 802 | AP13: Testing (E(Ret)) | AQ13: =AVERAGE(AQ18:AQ10017) -> -0.007466537982 | AR13: =AVERAGE(AR18:AR10017) -> 5.292829068e-05 | AS13: (These numbers should be close to E(Ret)) | AY13: # simulations of 'Bad' Total Performance breaching Threshold: | AZ13: =SUM(AT18:AT10017) -> 5727 | BG13: From hereon assume a 'good' fund
O14: Simulation Results | X14: # simulations of 'Bad' Implementation Performance breaching Threshold: | Y14: =SUM(T16:T10015) -> 210 | AD14: Mistakes: probability of mistakenly identifying a 'good' fund as 'bad'. | AF14: =_xlfn.NORM.DIST($AF$5,AF8,AF12,TRUE) -> 0.07656372551 | AG14: =_xlfn.NORM.DIST($AF$5,AG8,AG12,TRUE) -> 0.762474738 | AP14: Testing (adj. vol.) | AQ14: =STDEV(AQ18:AQ10017) -> 0.002472239629 | AR14: =STDEV(AR18:AR10017) -> 0.01288264664 | AS14: (These numbers should be close to adj. vol.) | AY14: # simulations of 'Bad' Implementation Performance breaching Threshold: | AZ14: =SUM(AU18:AU10017) -> 3499 | BG14: E(Ret) | BH14: 0
P15: Risk and AA | Q15: Implementation | R15: Total | S15: 'Bad' Performer | T15: Bad' Implementer | U15: Both | X15: # simulations of coincidence: observed 'Bad' Total Performers and 'Bad' Implementation: | Y15: =SUM(U16:U10015) -> 141 | AG15: =1-AG14 -> 0.237525262 | AH15: Effectiveness: probability of failing to identify a 'bad' fund. | AY15: # simulations of coincidence: 'Bad' Total Performers and 'Bad' Implementation: | AZ15: =SUM(AV18:AV10017) -> 3499 | BG15: Ann Std Dev (Total) | BH15: 0.007
O16: 1 | P16: =$P$8+_xlfn.NORM.INV(RAND(),0,1)*$P$10 -> 0.0003178362514 | Q16: =$Q$8+_xlfn.NORM.INV(RAND(),0,1)*$Q$10 -> -0.004500854733 | R16: =(1+P16)*(1+Q16)-1 -> -0.004184449016 | S16: =IF(R16<=$P$5,1,0) -> 0 | T16: =IF(Q16<=$P$5,1,0) -> 0 | U16: =S16*T16 -> 0 | AP16: Simulation Results | BG16: Timeframe adjusted vol | BH16: =BH15*SQRT(BH10)/BH10 -> 0.004949747468
O17: 2 | P17: =$P$8+_xlfn.NORM.INV(RAND(),0,1)*$P$10 -> 0.0003034358956 | Q17: =$Q$8+_xlfn.NORM.INV(RAND(),0,1)*$Q$10 -> 3.998687808e-05 | R17: 0.0003434349071 | S17: 0 | T17: 0 | U17: 0 | AQ17: Risk and AA | AR17: Implementation | AS17: Total | AT17: Bad Performer | AU17: Bad Implementer | AV17: Both
O18: 3 | P18: 0.0008567890227 | Q18: 0.0001338514119 | R18: 0.000990755117 | S18: 0 | T18: 0 | U18: 0 | X18: Effectiveness: probability of failing to identify a 'bad' fund. | Y18: =IF(Y12=0,"N/A",(Y12-Y14)/Y12) -> N/A | Z18: =IF(Y12=0,"Fund not 'bad'","") -> Fund not 'bad' | AP18: 1 | AQ18: =$AQ$8+_xlfn.NORM.INV(RAND(),0,1)*$AQ$12 -> -0.01154345161 | AR18: =$AR$8+_xlfn.NORM.INV(RAND(),0,1)*$AR$12 -> -0.01492479284 | AS18: =(1+AQ18)*(1+AR18)-1 -> -0.02629596083 | AT18: =IF(AS18<=$AQ$5,1,0) -> 1 | AU18: =IF(AR18<=$AQ$5,1,0) -> 1 | AV18: =AT18*AU18 -> 1 | AY18: Effectiveness: probability of failing to identify a 'bad' fund. | AZ18: =IF(AZ12=0,"N/A",(AZ12-AZ14)/AZ12) -> 0.6501 | BA18: =IF(AZ12=0,"Fund not 'bad'","") ->  | BF18: Mistakes: probability of mistakenly identifying a 'good' fund as 'bad'. | BH18: =_xlfn.NORM.DIST(BH11,BH14,BH16,TRUE) -> 0.1562111056
O19: 4 | P19: 0.001903856317 | Q19: 0.002176861542 | R19: 0.00408486229 | S19: 0 | T19: 0 | U19: 0 | X19: Attribution: due to variability and the timeframe: | Y19: =IF(Y12=0,"N/A",(Y12-Y13)/Y12) -> N/A | AP19: 2 | AQ19: =$AQ$8+_xlfn.NORM.INV(RAND(),0,1)*$AQ$12 -> -0.007688020615 | AR19: =$AR$8+_xlfn.NORM.INV(RAND(),0,1)*$AR$12 -> -0.01599057827 | AS19: =(1+AQ19)*(1+AR19)-1 -> -0.02355566299 | AT19: =IF(AS19<=$AQ$5,1,0) -> 1 | AU19: =IF(AR19<=$AQ$5,1,0) -> 1 | AV19: =AT19*AU19 -> 1 | AY19: Attribution: due to variability and the timeframe: | AZ19: =IF(AZ12=0,"N/A",(AZ12-AZ13)/AZ12) -> 0.4273
O20: 5 | P20: 0.003897918317 | Q20: 0.001634621906 | R20: 0.005538911845 | S20: 0 | T20: 0 | U20: 0 | X20: Attribution: due to the test focusing on implementation and not total performance: | Y20: =IF(Y12=0,"N/A",(Y13-Y14)/Y12) -> N/A | AP20: 3 | AQ20: -0.01333412046 | AR20: -0.003350262825 | AS20: -0.01663971048 | AT20: 1 | AU20: 0 | AV20: 0 | AY20: Attribution: due to the test focusing on implementation and not total performance: | AZ20: =IF(AZ12=0,"N/A",(AZ13-AZ14)/AZ12) -> 0.2228
O21: 6 | P21: 0.0004828642944 | Q21: -0.0006497556692 | R21: -0.0001672051187 | S21: 0 | T21: 0 | U21: 0 | AP21: 4 | AQ21: -0.008068195363 | AR21: 0.009445925002 | AS21: 0.001301518071 | AT21: 0 | AU21: 0 | AV21: 0
O22: 7 | P22: -0.002912847633 | Q22: -0.001626090624 | R22: -0.004534201703 | S22: 0 | T22: 0 | U22: 0 | X22: Mistakes: probability of mistakenly identifying a 'good' fund as 'bad'. | Y22: =IF(Y12=0,Y14/10000,"N/A") -> 0.021 | Z22: =IF(Y12=10000,"Fund not 'good'","") ->  | AP22: 5 | AQ22: -0.0111893239 | AR22: -0.01652990613 | AS22: -0.02753427156 | AT22: 1 | AU22: 1 | AV22: 1 | AY22: Mistakes: probability of mistakenly identifying a 'good' fund as 'bad'. | AZ22: =IF(AZ12=0,AZ14/10000,"N/A") -> N/A | BA22: =IF(AZ12=10000,"Fund not 'good'","") -> Fund not 'good'
O23: 8 | P23: 0.006140933156 | Q23: -0.000877902955 | R23: 0.005257639058 | S23: 0 | T23: 0 | U23: 0 | X23: Attribution: due to variability and the timeframe: | Y23: =IF(Y12=0,(Y13)/10000,"N/A") -> 0.0802 | AP23: 6 | AQ23: -0.005696808705 | AR23: 0.01239324543 | AS23: 0.006625834777 | AT23: 0 | AU23: 0 | AV23: 0 | AY23: Attribution: due to variability and the timeframe: | AZ23: =IF(AZ12=0,(AZ13)/10000,"N/A") -> N/A
O24: 9 | P24: 0.0007110711383 | Q24: -0.00151319747 | R24: -0.0008032023225 | S24: 0 | T24: 0 | U24: 0 | X24: Attribution: due to the test focusing on implementation and not total performance: | Y24: =IF(Y12=0,(Y14-Y13)/10000,"N/A") -> -0.0592 | AP24: 7 | AQ24: -0.00698351031 | AR24: 0.004079510137 | AS24: -0.002932489474 | AT24: 0 | AU24: 0 | AV24: 0 | AY24: Attribution: due to the test focusing on implementation and not total performance: | AZ24: =IF(AZ12=0,(AZ14-AZ13)/10000,"N/A") -> N/A
O25: 10 | P25: 2.287498738e-05 | Q25: 0.0001453081079 | R25: 0.0001681864192 | S25: 0 | T25: 0 | U25: 0 | AP25: 8 | AQ25: -0.01300288336 | AR25: 0.009867322203 | AS25: -0.003263864795 | AT25: 0 | AU25: 0 | AV25: 0
O26: 11 | P26: -0.007285780673 | Q26: -0.0008368844419 | R26: -0.008116567759 | S26: 1 | T26: 0 | U26: 0 | AP26: 9 | AQ26: -0.009960354722 | AR26: 0.01070558619 | AS26: 0.0006386000327 | AT26: 0 | AU26: 0 | AV26: 0
O27: 12 | P27: -0.0003735959044 | Q27: 0.0007651768333 | R27: 0.000391295062 | S27: 0 | T27: 0 | U27: 0 | AP27: 10 | AQ27: -0.009993591574 | AR27: -0.005182233086 | AS27: -0.01512403554 | AT27: 1 | AU27: 1 | AV27: 1
O28: 13 | P28: 0.004024866353 | Q28: 0.002079755869 | R28: 0.006112992961 | S28: 0 | T28: 0 | U28: 0 | AP28: 11 | AQ28: -0.005354951553 | AR28: -0.0003674961977 | AS28: -0.005720479826 | AT28: 1 | AU28: 0 | AV28: 0
O29: 14 | P29: 0.0002824985085 | Q29: -0.000970482878 | R29: -0.0006882585294 | S29: 0 | T29: 0 | U29: 0 | AP29: 12 | AQ29: -0.0101857446 | AR29: -0.01891478533 | AS29: -0.02890786876 | AT29: 1 | AU29: 1 | AV29: 1
O30: 15 | P30: 3.868180043e-06 | Q30: -0.001306249469 | R30: -0.001302386342 | S30: 0 | T30: 0 | U30: 0 | AP30: 13 | AQ30: -0.01091296248 | AR30: 0.004600439228 | AS30: -0.00636272767 | AT30: 1 | AU30: 0 | AV30: 0
O31: 16 | P31: -0.003480120909 | Q31: 0.007045969507 | R31: 0.003541327772 | S31: 0 | T31: 0 | U31: 0 | AP31: 14 | AQ31: -0.004330496632 | AR31: 0.007935727252 | AS31: 0.00357086498 | AT31: 0 | AU31: 0 | AV31: 0
O32: 17 | P32: -0.002831505598 | Q32: -0.003738625495 | R32: -0.006559545153 | S32: 1 | T32: 0 | U32: 0 | AP32: 15 | AQ32: -0.01031526444 | AR32: -0.01113491678 | AS32: -0.02133532161 | AT32: 1 | AU32: 1 | AV32: 1
O33: 18 | P33: -0.0006764512994 | Q33: 0.004235144985 | R33: 0.003555828816 | S33: 0 | T33: 0 | U33: 0 | AP33: 16 | AQ33: -0.006831926693 | AR33: -0.0178766048 | AS33: -0.02458639984 | AT33: 1 | AU33: 1 | AV33: 1
O34: 19 | P34: 0.002377656202 | Q34: 0.0005080979079 | R34: 0.002886962192 | S34: 0 | T34: 0 | U34: 0 | AP34: 17 | AQ34: -0.008432125562 | AR34: -0.004894525829 | AS34: -0.01328538013 | AT34: 1 | AU34: 0 | AV34: 0
O35: 20 | P35: -0.0007348189148 | Q35: 0.003096247136 | R35: 0.00235915304 | S35: 0 | T35: 0 | U35: 0 | AP35: 18 | AQ35: -0.004000586225 | AR35: 0.01566309651 | AS35: 0.01159984871 | AT35: 0 | AU35: 0 | AV35: 0
O36: 21 | P36: -0.001609141938 | Q36: -0.001285074483 | R36: -0.002892148554 | S36: 0 | T36: 0 | U36: 0 | AP36: 19 | AQ36: -0.005686409057 | AR36: 0.002506164026 | AS36: -0.003194496104 | AT36: 0 | AU36: 0 | AV36: 0
O37: 22 | P37: -0.0006263723653 | Q37: -0.001132482546 | R37: -0.001758145556 | S37: 0 | T37: 0 | U37: 0 | AP37: 20 | AQ37: -0.004027262093 | AR37: -0.01306602645 | AS37: -0.01704066823 | AT37: 1 | AU37: 1 | AV37: 1
O38: 23 | P38: -0.001163473662 | Q38: -0.000866273437 | R38: -0.002028739213 | S38: 0 | T38: 0 | U38: 0 | AP38: 21 | AQ38: -0.007268849636 | AR38: -0.00969907079 | AS38: -0.01689741934 | AT38: 1 | AU38: 1 | AV38: 1
O39: 24 | P39: 0.0004925687607 | Q39: 0.0007489959859 | R39: 0.001241933679 | S39: 0 | T39: 0 | U39: 0 | AP39: 22 | AQ39: -0.002421749014 | AR39: -0.02847863958 | AS39: -0.03083142048 | AT39: 1 | AU39: 1 | AV39: 1
O40: 25 | P40: -0.0007347051298 | Q40: 0.001054646018 | R40: 0.0003191660342 | S40: 0 | T40: 0 | U40: 0 | AP40: 23 | AQ40: -0.009936505726 | AR40: -0.005342979762 | AS40: -0.01522639494 | AT40: 1 | AU40: 1 | AV40: 1
O41: 26 | P41: 0.003462808503 | Q41: 0.001280526696 | R41: 0.004747769417 | S41: 0 | T41: 0 | U41: 0 | AP41: 24 | AQ41: -0.005936702675 | AR41: -0.001484606309 | AS41: -0.007412495317 | AT41: 1 | AU41: 0 | AV41: 0
O42: 27 | P42: 0.002659642235 | Q42: -0.00302196935 | R42: -0.0003703644724 | S42: 0 | T42: 0 | U42: 0 | AP42: 25 | AQ42: -0.006454368014 | AR42: -0.02179245301 | AS42: -0.02810616451 | AT42: 1 | AU42: 1 | AV42: 1
O43: 28 | P43: -0.003462379893 | Q43: 0.0003185248724 | R43: -0.003144957875 | S43: 0 | T43: 0 | U43: 0 | AP43: 26 | AQ43: -0.01008456121 | AR43: 0.01571909427 | AS43: 0.005476012892 | AT43: 0 | AU43: 0 | AV43: 0
O44: 29 | P44: -0.003537000317 | Q44: -0.001270202735 | R44: -0.004802710345 | S44: 0 | T44: 0 | U44: 0 | AP44: 27 | AQ44: -0.004822766509 | AR44: -0.007916263581 | AS44: -0.0127008518 | AT44: 1 | AU44: 1 | AV44: 1
O45: 30 | P45: -0.0003310830024 | Q45: 0.000483824948 | R45: 0.0001525817594 | S45: 0 | T45: 0 | U45: 0 | AP45: 28 | AQ45: -0.009641006602 | AR45: 0.01012345435 | AS45: 0.000384847454 | AT45: 0 | AU45: 0 | AV45: 0
O46: 31 | P46: 0.005324378159 | Q46: -0.002419184076 | R46: 0.002892313432 | S46: 0 | T46: 0 | U46: 0 | AP46: 29 | AQ46: -0.009510768279 | AR46: -0.007694850468 | AS46: -0.01713243481 | AT46: 1 | AU46: 1 | AV46: 1
O47: 32 | P47: 0.003774566613 | Q47: -0.001246891319 | R47: 0.00252296882 | S47: 0 | T47: 0 | U47: 0 | AP47: 30 | AQ47: -0.007430534194 | AR47: 0.004328161588 | AS47: -0.003134533159 | AT47: 0 | AU47: 0 | AV47: 0
O48: 33 | P48: 0.0001015333059 | Q48: -0.003060386345 | R48: -0.002959163771 | S48: 0 | T48: 0 | U48: 0 | AP48: 31 | AQ48: -0.007097871558 | AR48: -0.007737972404 | AS48: -0.01478092083 | AT48: 1 | AU48: 1 | AV48: 1
O49: 34 | P49: -0.001453818773 | Q49: 0.003892334386 | R49: 0.002432856864 | S49: 0 | T49: 0 | U49: 0 | AP49: 32 | AQ49: -0.002311364207 | AR49: -0.0005067717965 | AS49: -0.002816964669 | AT49: 0 | AU49: 0 | AV49: 0
O50: 35 | P50: 0.003478793427 | Q50: 0.0003791528961 | R50: 0.003859265318 | S50: 0 | T50: 0 | U50: 0 | AP50: 33 | AQ50: -0.008773817056 | AR50: -0.01204400997 | AS50: -0.02071215508 | AT50: 1 | AU50: 1 | AV50: 1
O51: 36 | P51: 0.0003129203752 | Q51: -0.0001825007788 | R51: 0.0001303624882 | S51: 0 | T51: 0 | U51: 0 | AP51: 34 | AQ51: -0.009064918818 | AR51: 0.002099170574 | AS51: -0.006984777054 | AT51: 1 | AU51: 0 | AV51: 0
O52: 37 | P52: 0.001580822744 | Q52: 0.00127267218 | R52: 0.002855506793 | S52: 0 | T52: 0 | U52: 0 | AP52: 35 | AQ52: -0.01103641519 | AR52: -0.0002774828438 | AS52: -0.01131083562 | AT52: 1 | AU52: 0 | AV52: 0
O53: 38 | P53: 0.002513133394 | Q53: 0.0005529099638 | R53: 0.003067432894 | S53: 0 | T53: 0 | U53: 0 | AP53: 36 | AQ53: -0.009211487537 | AR53: 0.01705771625 | AS53: 0.007689101769 | AT53: 0 | AU53: 0 | AV53: 0
O54: 39 | P54: 0.002940043188 | Q54: 0.00453971374 | R54: 0.007493103883 | S54: 0 | T54: 0 | U54: 0 | AP54: 37 | AQ54: -0.007627784285 | AR54: 0.009623572055 | AS54: 0.001922381238 | AT54: 0 | AU54: 0 | AV54: 0
O55: 40 | P55: 0.002502410187 | Q55: -0.001548100963 | R55: 0.00095043524 | S55: 0 | T55: 0 | U55: 0 | AP55: 38 | AQ55: -0.006536121574 | AR55: 0.005870507366 | AS55: -0.0007039845572 | AT55: 0 | AU55: 0 | AV55: 0
O56: 41 | P56: -0.000914756783 | Q56: -0.001793589368 | R56: -0.002706705453 | S56: 0 | T56: 0 | U56: 0 | AP56: 39 | AQ56: -0.006863480204 | AR56: 0.02202058854 | AS56: 0.01500597046 | AT56: 0 | AU56: 0 | AV56: 0
O57: 42 | P57: -0.001451444379 | Q57: -0.002304728292 | R57: -0.003752827487 | S57: 0 | T57: 0 | U57: 0 | AP57: 40 | AQ57: -0.004399018533 | AR57: 0.00806220714 | AS57: 0.003627722808 | AT57: 0 | AU57: 0 | AV57: 0
O58: 43 | P58: -0.001690075168 | Q58: -0.0006313485512 | R58: -0.002320356692 | S58: 0 | T58: 0 | U58: 0 | AP58: 41 | AQ58: -0.008148247807 | AR58: -0.007557286303 | AS58: -0.01564395547 | AT58: 1 | AU58: 1 | AV58: 1
O59: 44 | P59: 0.004015820325 | Q59: -0.00326725016 | R59: 0.0007354494759 | S59: 0 | T59: 0 | U59: 0 | AP59: 42 | AQ59: -0.00681184416 | AR59: -0.02774337016 | AS59: -0.0343662308 | AT59: 1 | AU59: 1 | AV59: 1
O60: 45 | P60: -0.002836700394 | Q60: 0.001895118831 | R60: -0.0009469574475 | S60: 0 | T60: 0 | U60: 0 | AP60: 43 | AQ60: -0.006027642457 | AR60: -0.00156535625 | AS60: -0.0075835633 | AT60: 1 | AU60: 0 | AV60: 0
O61: 46 | P61: -0.002215966277 | Q61: -0.0006474735642 | R61: -0.002862005062 | S61: 0 | T61: 0 | U61: 0 | AP61: 44 | AQ61: -0.007073554736 | AR61: -0.0008030586638 | AS61: -0.00787093292 | AT61: 1 | AU61: 0 | AV61: 0
O62: 47 | P62: 7.993689406e-05 | Q62: -0.004089247009 | R62: -0.004009636997 | S62: 0 | T62: 0 | U62: 0 | AP62: 45 | AQ62: -0.0059160455 | AR62: -0.007719756008 | AS62: -0.01359013108 | AT62: 1 | AU62: 1 | AV62: 1
O63: 48 | P63: 0.000498612012 | Q63: 0.0003618873558 | R63: 0.0008606798092 | S63: 0 | T63: 0 | U63: 0 | AP63: 46 | AQ63: -0.004500699127 | AR63: -0.00968561044 | AS63: -0.01414271755 | AT63: 1 | AU63: 1 | AV63: 1
O64: 49 | P64: -0.002113881933 | Q64: -0.00215954049 | R64: -0.004268857409 | S64: 0 | T64: 0 | U64: 0 | AP64: 47 | AQ64: -0.006251064911 | AR64: 0.01334544169 | AS64: 0.007010953558 | AT64: 0 | AU64: 0 | AV64: 0
O65: 50 | P65: 0.0005687823704 | Q65: -0.002105380012 | R65: -0.001537795145 | S65: 0 | T65: 0 | U65: 0 | AP65: 48 | AQ65: -0.0057760932 | AR65: 0.008056191396 | AS65: 0.002233564884 | AT65: 0 | AU65: 0 | AV65: 0
O66: 51 | P66: 0.002205068687 | Q66: 0.0009939875691 | R66: 0.003201248067 | S66: 0 | T66: 0 | U66: 0 | AP66: 49 | AQ66: -0.008760948743 | AR66: -0.006659742173 | AS66: -0.01536234526 | AT66: 1 | AU66: 1 | AV66: 1
O67: 52 | P67: 0.001144484168 | Q67: 0.004573815775 | R67: 0.005723534603 | S67: 0 | T67: 0 | U67: 0 | AP67: 50 | AQ67: -0.008071017211 | AR67: 0.002609706463 | AS67: -0.005482373733 | AT67: 1 | AU67: 0 | AV67: 0
O68: 53 | P68: 0.0006961006278 | Q68: -0.000554338215 | R68: 0.0001413765376 | S68: 0 | T68: 0 | U68: 0 | AP68: 51 | AQ68: -0.008785068013 | AR68: -0.01055186637 | AS68: -0.01924423552 | AT68: 1 | AU68: 1 | AV68: 1
O69: 54 | P69: -0.001469389134 | Q69: 0.001158851981 | R69: -0.0003122399578 | S69: 0 | T69: 0 | U69: 0 | AP69: 52 | AQ69: -0.007480828218 | AR69: 0.007397636743 | AS69: -0.0001385319248 | AT69: 0 | AU69: 0 | AV69: 0
O70: 55 | P70: -0.002260935868 | Q70: -0.001607922436 | R70: -0.003865222894 | S70: 0 | T70: 0 | U70: 0 | AP70: 53 | AQ70: -0.007287573665 | AR70: -0.01140586022 | AS70: -0.01861031284 | AT70: 1 | AU70: 1 | AV70: 1
O71: 56 | P71: -0.001906743644 | Q71: 0.0007360293474 | R71: -0.001172117716 | S71: 0 | T71: 0 | U71: 0 | AP71: 54 | AQ71: -0.00807185614 | AR71: 0.01143596836 | AS71: 0.003271802728 | AT71: 0 | AU71: 0 | AV71: 0
O72: 57 | P72: -0.002613720911 | Q72: -0.003713235229 | R72: -0.006317250779 | S72: 1 | T72: 0 | U72: 0 | AP72: 55 | AQ72: -0.01099935222 | AR72: -0.01286488252 | AS72: -0.02372272937 | AT72: 1 | AU72: 1 | AV72: 1
O73: 58 | P73: -0.00227827478 | Q73: 0.0007831024944 | R73: -0.001496956408 | S73: 0 | T73: 0 | U73: 0 | AP73: 56 | AQ73: -0.005911762947 | AR73: 0.008484788059 | AS73: 0.002522865057 | AT73: 0 | AU73: 0 | AV73: 0
O74: 59 | P74: 0.001983488339 | Q74: 0.001512078774 | R74: 0.003498566303 | S74: 0 | T74: 0 | U74: 0 | AP74: 57 | AQ74: -0.006696763334 | AR74: 0.02702226739 | AS74: 0.02014454233 | AT74: 0 | AU74: 0 | AV74: 0
O75: 60 | P75: -8.97182559e-05 | Q75: 0.0009651922105 | R75: 0.0008753873593 | S75: 0 | T75: 0 | U75: 0 | AP75: 58 | AQ75: -0.009887568724 | AR75: -0.03006590841 | AS75: -0.0396561984 | AT75: 1 | AU75: 1 | AV75: 1
O76: 61 | P76: -0.001550606662 | Q76: 0.001198611337 | R76: -0.0003538539 | S76: 0 | T76: 0 | U76: 0 | AP76: 59 | AQ76: -0.006344548995 | AR76: 0.001004309384 | AS76: -0.005346611501 | AT76: 1 | AU76: 0 | AV76: 0
O77: 62 | P77: 0.002337220768 | Q77: 0.003858972429 | R77: 0.006205212468 | S77: 0 | T77: 0 | U77: 0 | AP77: 60 | AQ77: -0.009764711522 | AR77: -0.008240875425 | AS77: -0.01792511718 | AT77: 1 | AU77: 1 | AV77: 1
O78: 63 | P78: 0.0005151732837 | Q78: -0.0002285403414 | R78: 0.0002865152044 | S78: 0 | T78: 0 | U78: 0 | AP78: 61 | AQ78: -0.009599617152 | AR78: -0.004470138992 | AS78: -0.01402684452 | AT78: 1 | AU78: 0 | AV78: 0
O79: 64 | P79: -0.002376939671 | Q79: 0.001730424085 | R79: -0.0006506286998 | S79: 0 | T79: 0 | U79: 0 | AP79: 62 | AQ79: -0.009538319916 | AR79: 0.005769003631 | AS79: -0.003824342887 | AT79: 0 | AU79: 0 | AV79: 0
O80: 65 | P80: -0.004156611292 | Q80: 0.0002116972562 | R80: =(1+P80)*(1+Q80)-1 -> -0.003945793979 | S80: =IF(R80<=$P$5,1,0) -> 0 | T80: =IF(Q80<=$P$5,1,0) -> 0 | U80: =S80*T80 -> 0 | AP80: 63 | AQ80: -0.008138245114 | AR80: -0.01302242834 | AS80: -0.02105469374 | AT80: 1 | AU80: 1 | AV80: 1
O81: 66 | P81: =$P$8+_xlfn.NORM.INV(RAND(),0,1)*$P$10 -> -0.001158366178 | Q81: =$Q$8+_xlfn.NORM.INV(RAND(),0,1)*$Q$10 -> -0.000749628554 | R81: -0.001907126387 | S81: 0 | T81: 0 | U81: 0 | AP81: 64 | AQ81: -0.003085291437 | AR81: -0.001087232562 | AS81: -0.004169169569 | AT81: 0 | AU81: 0 | AV81: 0
O82: 67 | P82: -0.0007111879358 | Q82: -0.001241049108 | R82: -0.001951354425 | S82: 0 | T82: 0 | U82: 0 | AP82: 65 | AQ82: -0.008219158502 | AR82: 0.01307077464 | AS82: 0.004744185374 | AT82: 0 | AU82: 0 | AV82: 0
O83: 68 | P83: 0.002263240019 | Q83: -0.00258685824 | R83: -0.0003294729024 | S83: 0 | T83: 0 | U83: 0 | AP83: 66 | AQ83: =$AQ$8+_xlfn.NORM.INV(RAND(),0,1)*$AQ$12 -> -0.006936714476 | AR83: =$AR$8+_xlfn.NORM.INV(RAND(),0,1)*$AR$12 -> 0.003609227503 | AS83: =(1+AQ83)*(1+AR83)-1 -> -0.003352523153 | AT83: =IF(AS83<=$AQ$5,1,0) -> 0 | AU83: =IF(AR83<=$AQ$5,1,0) -> 0 | AV83: =AT83*AU83 -> 0
O84: 69 | P84: -0.002301029435 | Q84: 0.001326540584 | R84: -0.0009775412607 | S84: 0 | T84: 0 | U84: 0 | AP84: 67 | AQ84: -0.007763831484 | AR84: 0.002404392647 | AS84: -0.005378106136 | AT84: 1 | AU84: 0 | AV84: 0
O85: 70 | P85: -0.004126809186 | Q85: 0.0003797479884 | R85: -0.003748628345 | S85: 0 | T85: 0 | U85: 0 | AP85: 68 | AQ85: -0.01041292213 | AR85: 0.01061636931 | AS85: 9.289975442e-05 | AT85: 0 | AU85: 0 | AV85: 0
O86: 71 | P86: 0.00248627913 | Q86: -0.0008023518759 | R86: 0.001681932383 | S86: 0 | T86: 0 | U86: 0 | AP86: 69 | AQ86: -0.003765293323 | AR86: -0.02110357364 | AS86: -0.02478940582 | AT86: 1 | AU86: 1 | AV86: 1
O87: 72 | P87: 0.0003662887739 | Q87: -0.0005540058231 | R87: -0.0001879199753 | S87: 0 | T87: 0 | U87: 0 | AP87: 70 | AQ87: -0.008403129105 | AR87: -0.003274411975 | AS87: -0.01165002577 | AT87: 1 | AU87: 0 | AV87: 0
O88: 73 | P88: -0.008781622389 | Q88: -0.0003199338437 | R88: -0.009098746694 | S88: 1 | T88: 0 | U88: 0 | AP88: 71 | AQ88: -0.007014562829 | AR88: -0.009627668048 | AS88: -0.01657469699 | AT88: 1 | AU88: 1 | AV88: 1
O89: 74 | P89: -0.00410360072 | Q89: -0.00161553061 | R89: -0.005712501838 | S89: 1 | T89: 0 | U89: 0 | AP89: 72 | AQ89: -0.007950531288 | AR89: 0.00387849368 | AS89: -0.004102873693 | AT89: 0 | AU89: 0 | AV89: 0
O90: 75 | P90: 0.001019177969 | Q90: -0.001427023522 | R90: -0.0004092999439 | S90: 0 | T90: 0 | U90: 0 | AP90: 73 | AQ90: -0.009284729459 | AR90: 0.001531324414 | AS90: -0.007767622978 | AT90: 1 | AU90: 0 | AV90: 0
O91: 76 | P91: 0.002168930545 | Q91: 0.0002970595877 | R91: 0.002466634434 | S91: 0 | T91: 0 | U91: 0 | AP91: 74 | AQ91: -0.004806670364 | AR91: 0.01964178018 | AS91: 0.01474069826 | AT91: 0 | AU91: 0 | AV91: 0
O92: 77 | P92: -0.0009610651531 | Q92: -9.260019179e-05 | R92: -0.00105357635 | S92: 0 | T92: 0 | U92: 0 | AP92: 75 | AQ92: -0.00569360139 | AR92: -0.008279992177 | AS92: -0.01392645059 | AT92: 1 | AU92: 1 | AV92: 1
O93: 78 | P93: 0.0006703588797 | Q93: -0.003095474478 | R93: -0.002427190677 | S93: 0 | T93: 0 | U93: 0 | AP93: 76 | AQ93: -0.006936172237 | AR93: -0.0004215601129 | AS93: -0.007354808336 | AT93: 1 | AU93: 0 | AV93: 0
O94: 79 | P94: -0.0002411430607 | Q94: -0.002645714401 | R94: -0.002886219466 | S94: 0 | T94: 0 | U94: 0 | AP94: 77 | AQ94: -0.01230559788 | AR94: -0.003232171102 | AS94: -0.01549799519 | AT94: 1 | AU94: 0 | AV94: 0
O95: 80 | P95: -0.002194513119 | Q95: 0.0007829797537 | R95: -0.001413251624 | S95: 0 | T95: 0 | U95: 0 | AP95: 78 | AQ95: -0.009977424659 | AR95: -0.01162073491 | AS95: -0.02148221456 | AT95: 1 | AU95: 1 | AV95: 1
O96: 81 | P96: -0.003940892406 | Q96: -0.004273872285 | R96: -0.00819792182 | S96: 1 | T96: 0 | U96: 0 | AP96: 79 | AQ96: -0.004020477588 | AR96: -0.002706755845 | AS96: -0.006716350981 | AT96: 1 | AU96: 0 | AV96: 0
O97: 82 | P97: -0.001314442963 | Q97: -0.00250719771 | R97: -0.003818345105 | S97: 0 | T97: 0 | U97: 0 | AP97: 80 | AQ97: -0.006704129199 | AR97: 0.01714110766 | AS97: 0.01032206226 | AT97: 0 | AU97: 0 | AV97: 0
O98: 83 | P98: -0.004292358466 | Q98: 0.005468482842 | R98: 0.001152651687 | S98: 0 | T98: 0 | U98: 0 | AP98: 81 | AQ98: -0.005638676946 | AR98: 0.0005278616486 | AS98: -0.005113791739 | AT98: 1 | AU98: 0 | AV98: 0
O99: 84 | P99: 0.004519174421 | Q99: 0.003073068612 | R99: 0.007606130766 | S99: 0 | T99: 0 | U99: 0 | AP99: 82 | AQ99: -0.005290543388 | AR99: 0.005616292502 | AS99: 0.0002960358755 | AT99: 0 | AU99: 0 | AV99: 0
O100: 85 | P100: 0.0004950839976 | Q100: 0.0008759453222 | R100: 0.001371462986 | S100: 0 | T100: 0 | U100: 0 | AP100: 83 | AQ100: -0.007024420681 | AR100: -0.03599812515 | AS100: -0.04276967986 | AT100: 1 | AU100: 1 | AV100: 1
O101: 86 | P101: 0.002836947175 | Q101: -0.001060853568 | R101: 0.001773084021 | S101: 0 | T101: 0 | U101: 0 | AP101: 84 | AQ101: -0.01097133615 | AR101: -0.007992278986 | AS101: -0.01887592915 | AT101: 1 | AU101: 1 | AV101: 1
O102: 87 | P102: 0.002622454541 | Q102: -0.001550799778 | R102: 0.001067587861 | S102: 0 | T102: 0 | U102: 0 | AP102: 85 | AQ102: -0.005096648811 | AR102: -0.009827376861 | AS102: -0.01487393898 | AT102: 1 | AU102: 1 | AV102: 1
O103: 88 | P103: 0.003463173646 | Q103: -0.003424867187 | R103: 2.644554835e-05 | S103: 0 | T103: 0 | U103: 0 | AP103: 86 | AQ103: -0.007106352542 | AR103: -0.009204500629 | AS103: -0.01624544274 | AT103: 1 | AU103: 1 | AV103: 1
O104: 89 | P104: -0.003042077601 | Q104: -0.002346642953 | R104: -0.005381581884 | S104: 1 | T104: 0 | U104: 0 | AP104: 87 | AQ104: -0.00833266416 | AR104: -0.01553527137 | AS104: -0.02373848533 | AT104: 1 | AU104: 1 | AV104: 1
O105: 90 | P105: 0.003024205587 | Q105: 0.0003148036518 | R105: 0.003339961269 | S105: 0 | T105: 0 | U105: 0 | AP105: 88 | AQ105: -0.007318219499 | AR105: 0.01753266746 | AS105: 0.01008614005 | AT105: 0 | AU105: 0 | AV105: 0
O106: 91 | P106: 4.985319594e-05 | Q106: 0.002629239168 | R106: 0.00267922344 | S106: 0 | T106: 0 | U106: 0 | AP106: 89 | AQ106: -0.007986842359 | AR106: -0.002231531713 | AS106: -0.01020055118 | AT106: 1 | AU106: 0 | AV106: 0
O107: 92 | P107: 0.004629046591 | Q107: -0.000287016654 | R107: 0.004340701324 | S107: 0 | T107: 0 | U107: 0 | AP107: 90 | AQ107: -0.007352982938 | AR107: 0.01945415353 | AS107: 0.01195812453 | AT107: 0 | AU107: 0 | AV107: 0
O108: 93 | P108: -0.0002856997881 | Q108: 0.0009505058003 | R108: 0.0006645344529 | S108: 0 | T108: 0 | U108: 0 | AP108: 91 | AQ108: -0.008110492165 | AR108: -0.01495078884 | AS108: -0.02294002275 | AT108: 1 | AU108: 1 | AV108: 1
O109: 94 | P109: -0.003045644048 | Q109: -0.000672323442 | R109: -0.003715919832 | S109: 0 | T109: 0 | U109: 0 | AP109: 92 | AQ109: -0.009360654446 | AR109: -0.00121811202 | AS109: -0.01056736414 | AT109: 1 | AU109: 0 | AV109: 0
O110: 95 | P110: -0.001653924468 | Q110: -0.0004277167338 | R110: -0.002080933791 | S110: 0 | T110: 0 | U110: 0 | AP110: 93 | AQ110: -0.005143145958 | AR110: -0.009675703798 | AS110: -0.0147690862 | AT110: 1 | AU110: 1 | AV110: 1
O111: 96 | P111: 0.00615613498 | Q111: 0.003542197842 | R111: 0.00972013907 | S111: 0 | T111: 0 | U111: 0 | AP111: 94 | AQ111: -0.009938270327 | AR111: 0.01812103652 | AS111: 0.00800267443 | AT111: 0 | AU111: 0 | AV111: 0
O112: 97 | P112: -0.0008229942808 | Q112: -0.0006133999507 | R112: -0.001435889407 | S112: 0 | T112: 0 | U112: 0 | AP112: 95 | AQ112: -0.004592513416 | AR112: -0.004517656554 | AS112: -0.009089422572 | AT112: 1 | AU112: 0 | AV112: 0
O113: 98 | P113: -0.001139429707 | Q113: -0.003729472203 | R113: -0.004864652438 | S113: 0 | T113: 0 | U113: 0 | AP113: 96 | AQ113: -0.005468132294 | AR113: 0.0001480635434 | AS113: -0.005320878382 | AT113: 1 | AU113: 0 | AV113: 0
O114: 99 | P114: 0.002702242658 | Q114: 0.0007224551138 | R114: 0.003426650021 | S114: 0 | T114: 0 | U114: 0 | AP114: 97 | AQ114: -0.005786831419 | AR114: -0.004938453026 | AS114: -0.01069670645 | AT114: 1 | AU114: 0 | AV114: 0
O115: 100 | P115: 0.001036857774 | Q115: -0.00272036293 | R115: -0.001686325786 | S115: 0 | T115: 0 | U115: 0 | AP115: 98 | AQ115: -0.008596058696 | AR115: 0.008996648784 | AS115: 0.0003232543671 | AT115: 0 | AU115: 0 | AV115: 0
O116: 101 | P116: 0.002361399659 | Q116: 0.002295795477 | R116: 0.004662616427 | S116: 0 | T116: 0 | U116: 0 | AP116: 99 | AQ116: -0.008082801286 | AR116: -0.002342951169 | AS116: -0.01040681485 | AT116: 1 | AU116: 0 | AV116: 0
O117: 102 | P117: -0.002489536507 | Q117: 0.001199390236 | R117: -0.001293132197 | S117: 0 | T117: 0 | U117: 0 | AP117: 100 | AQ117: -0.008191254769 | AR117: 0.008853676128 | AS117: 0.0005898986417 | AT117: 0 | AU117: 0 | AV117: 0
O118: 103 | P118: -0.001440685091 | Q118: -0.007006643442 | R118: -0.008437234167 | S118: 1 | T118: 1 | U118: 1 | AP118: 101 | AQ118: -0.004057428681 | AR118: -0.0149098416 | AS118: -0.01890677466 | AT118: 1 | AU118: 1 | AV118: 1
O119: 104 | P119: -0.006055648139 | Q119: -0.002126978799 | R119: -0.008169746702 | S119: 1 | T119: 0 | U119: 0 | AP119: 102 | AQ119: -0.008692105238 | AR119: 0.005828479312 | AS119: -0.002914287682 | AT119: 0 | AU119: 0 | AV119: 0
O120: 105 | P120: 0.002305342322 | Q120: -0.002814384346 | R120: -0.0005155301431 | S120: 0 | T120: 0 | U120: 0 | AP120: 103 | AQ120: -0.005551228849 | AR120: -0.000650920368 | AS120: -0.006198535809 | AT120: 1 | AU120: 0 | AV120: 0
O121: 106 | P121: 0.003233569374 | Q121: 0.00167777255 | R121: 0.004916767117 | S121: 0 | T121: 0 | U121: 0 | AP121: 104 | AQ121: -0.007569344494 | AR121: -0.0001826583493 | AS121: -0.007750620239 | AT121: 1 | AU121: 0 | AV121: 0
O122: 107 | P122: -0.0007512132823 | Q122: -0.001408377364 | R122: -0.002158532655 | S122: 0 | T122: 0 | U122: 0 | AP122: 105 | AQ122: -0.003678604374 | AR122: 0.0003434953991 | AS122: -0.003336372558 | AT122: 0 | AU122: 0 | AV122: 0
O123: 108 | P123: 0.008377990327 | Q123: -0.003349199417 | R123: 0.005000731351 | S123: 0 | T123: 0 | U123: 0 | AP123: 106 | AQ123: -0.006531743943 | AR123: 0.001361968313 | AS123: -0.005178671658 | AT123: 1 | AU123: 0 | AV123: 0
O124: 109 | P124: -0.000583694845 | Q124: -0.0001768972227 | R124: -0.0007604888137 | S124: 0 | T124: 0 | U124: 0 | AP124: 107 | AQ124: -0.005016249045 | AR124: -0.01265996654 | AS124: -0.01761271004 | AT124: 1 | AU124: 1 | AV124: 1
O125: 110 | P125: 0.002270933418 | Q125: -0.00216114143 | R125: 0.0001048841797 | S125: 0 | T125: 0 | U125: 0 | AP125: 108 | AQ125: -0.005683742578 | AR125: 0.003287631843 | AS125: -0.002414796788 | AT125: 0 | AU125: 0 | AV125: 0
O126: 111 | P126: 0.001062564467 | Q126: 0.002927823524 | R126: 0.003993498992 | S126: 0 | T126: 0 | U126: 0 | AP126: 109 | AQ126: -0.008446433745 | AR126: 0.0002387646744 | AS126: -0.00820968578 | AT126: 1 | AU126: 0 | AV126: 0
O127: 112 | P127: 0.002540488605 | Q127: -0.003713527823 | R127: -0.001182473393 | S127: 0 | T127: 0 | U127: 0 | AP127: 110 | AQ127: -0.01086812543 | AR127: -0.01035736328 | AS127: -0.02111292358 | AT127: 1 | AU127: 1 | AV127: 1
O128: 113 | P128: -0.003107828908 | Q128: 0.001379989137 | R128: -0.00173212854 | S128: 0 | T128: 0 | U128: 0 | AP128: 111 | AQ128: -0.003058715021 | AR128: 0.001649131114 | AS128: -0.00141462813 | AT128: 0 | AU128: 0 | AV128: 0
O129: 114 | P129: -0.002156585829 | Q129: -0.0002932585153 | R129: -0.002449211907 | S129: 0 | T129: 0 | U129: 0 | AP129: 112 | AQ129: -0.008515174462 | AR129: -0.01146551604 | AS129: -0.01988305964 | AT129: 1 | AU129: 1 | AV129: 1
O130: 115 | P130: 0.002288248866 | Q130: -0.002270925312 | R130: 1.212711185e-05 | S130: 0 | T130: 0 | U130: 0 | AP130: 113 | AQ130: -0.00980976435 | AR130: -0.007257710488 | AS130: -0.01699627841 | AT130: 1 | AU130: 1 | AV130: 1
O131: 116 | P131: -0.001288062049 | Q131: -0.0004603781456 | R131: -0.001747847198 | S131: 0 | T131: 0 | U131: 0 | AP131: 114 | AQ131: -0.01476366227 | AR131: 0.01949902397 | AS131: 0.004447484703 | AT131: 0 | AU131: 0 | AV131: 0
O132: 117 | P132: 0.001007080305 | Q132: -0.002780729972 | R132: -0.001776450085 | S132: 0 | T132: 0 | U132: 0 | AP132: 115 | AQ132: -0.01060720244 | AR132: -0.004793385744 | AS132: -0.01534974377 | AT132: 1 | AU132: 0 | AV132: 0
O133: 118 | P133: -0.00113421253 | Q133: 0.001003820722 | R133: -0.0001315303541 | S133: 0 | T133: 0 | U133: 0 | AP133: 116 | AQ133: -0.009455132853 | AR133: 0.01057923828 | AS133: 0.001024077323 | AT133: 0 | AU133: 0 | AV133: 0
O134: 119 | P134: 0.001213100245 | Q134: 0.00234636502 | R134: 0.003562311641 | S134: 0 | T134: 0 | U134: 0 | AP134: 117 | AQ134: -0.005475112979 | AR134: 0.001767114115 | AS134: -0.003717674013 | AT134: 0 | AU134: 0 | AV134: 0
O135: 120 | P135: -0.0002910241298 | Q135: 0.0001631577488 | R135: -0.0001279138638 | S135: 0 | T135: 0 | U135: 0 | AP135: 118 | AQ135: -0.005415369851 | AR135: -0.006944030122 | AS135: -0.01232179548 | AT135: 1 | AU135: 1 | AV135: 1
O136: 121 | P136: -0.001148502193 | Q136: -0.001645619168 | R136: -0.002792231364 | S136: 0 | T136: 0 | U136: 0 | AP136: 119 | AQ136: -0.01270179587 | AR136: -0.003290455852 | AS136: -0.01595045702 | AT136: 1 | AU136: 0 | AV136: 0
O137: 122 | P137: 2.549429717e-05 | Q137: -0.00187293143 | R137: -0.001847484882 | S137: 0 | T137: 0 | U137: 0 | AP137: 120 | AQ137: -0.00552138362 | AR137: 0.006136513354 | AS137: 0.0005812476897 | AT137: 0 | AU137: 0 | AV137: 0
O138: 123 | P138: 0.0019946894 | Q138: -0.00242376146 | R138: -0.0004339067117 | S138: 0 | T138: 0 | U138: 0 | AP138: 121 | AQ138: -0.00708099499 | AR138: -0.003424746975 | AS138: -0.01048149135 | AT138: 1 | AU138: 0 | AV138: 0
O139: 124 | P139: 0.002025125892 | Q139: -0.001169728102 | R139: 0.0008530289436 | S139: 0 | T139: 0 | U139: 0 | AP139: 122 | AQ139: -0.004541281179 | AR139: -0.02121397808 | AS139: -0.02565892062 | AT139: 1 | AU139: 1 | AV139: 1
O140: 125 | P140: -0.0008795023387 | Q140: 0.002833218646 | R140: 0.001951224485 | S140: 0 | T140: 0 | U140: 0 | AP140: 123 | AQ140: -0.009882312032 | AR140: -0.02233192979 | AS140: -0.03199355072 | AT140: 1 | AU140: 1 | AV140: 1
O141: 126 | P141: 0.0003363866212 | Q141: 0.001477139046 | R141: 0.001814022557 | S141: 0 | T141: 0 | U141: 0 | AP141: 124 | AQ141: -0.01285282582 | AR141: -0.01799766002 | AS141: -0.03061916506 | AT141: 1 | AU141: 1 | AV141: 1
O142: 127 | P142: 0.001968357822 | Q142: 0.001364467388 | R142: 0.00333551097 | S142: 0 | T142: 0 | U142: 0 | AP142: 125 | AQ142: -0.006983403726 | AR142: 0.02219019772 | AS142: 0.01505183088 | AT142: 0 | AU142: 0 | AV142: 0
O143: 128 | P143: -0.001877974892 | Q143: 0.0005038964516 | R143: -0.001375024746 | S143: 0 | T143: 0 | U143: 0 | AP143: 126 | AQ143: -0.002837382674 | AR143: -0.01301542185 | AS143: -0.01581587479 | AT143: 1 | AU143: 1 | AV143: 1
O144: 129 | P144: -0.00202583206 | Q144: -0.003971459025 | R144: =(1+P144)*(1+Q144)-1 -> -0.005989245576 | S144: =IF(R144<=$P$5,1,0) -> 1 | T144: =IF(Q144<=$P$5,1,0) -> 0 | U144: =S144*T144 -> 0 | AP144: 127 | AQ144: -0.004236276725 | AR144: -0.003714785244 | AS144: -0.00793532511 | AT144: 1 | AU144: 0 | AV144: 0
O145: 130 | P145: =$P$8+_xlfn.NORM.INV(RAND(),0,1)*$P$10 -> 0.001793281335 | Q145: =$Q$8+_xlfn.NORM.INV(RAND(),0,1)*$Q$10 -> 0.003234695435 | R145: 0.005033777488 | S145: 0 | T145: 0 | U145: 0 | AP145: 128 | AQ145: -0.006914491574 | AR145: -0.005191213267 | AS145: -0.01206981024 | AT145: 1 | AU145: 1 | AV145: 1
O146: 131 | P146: -0.0009987810468 | Q146: -0.000699037568 | R146: -0.001697120429 | S146: 0 | T146: 0 | U146: 0 | AP146: 129 | AQ146: -0.01305586952 | AR146: -0.0007172121668 | AS146: -0.01376371785 | AT146: 1 | AU146: 0 | AV146: 0
O147: 132 | P147: 0.001817087109 | Q147: -0.001068043333 | R147: 0.0007471030487 | S147: 0 | T147: 0 | U147: 0 | AP147: 130 | AQ147: =$AQ$8+_xlfn.NORM.INV(RAND(),0,1)*$AQ$12 -> -0.007852839915 | AR147: =$AR$8+_xlfn.NORM.INV(RAND(),0,1)*$AR$12 -> 0.003001225077 | AS147: =(1+AQ147)*(1+AR147)-1 -> -0.004875182978 | AT147: =IF(AS147<=$AQ$5,1,0) -> 0 | AU147: =IF(AR147<=$AQ$5,1,0) -> 0 | AV147: =AT147*AU147 -> 0
O148: 133 | P148: -0.0006259200013 | Q148: -0.004607900846 | R148: -0.00523093667 | S148: 1 | T148: 0 | U148: 0 | AP148: 131 | AQ148: -0.01133133737 | AR148: -0.01761610637 | AS148: -0.0287478297 | AT148: 1 | AU148: 1 | AV148: 1
O149: 134 | P149: 0.0008620903487 | Q149: 0.002040478016 | R149: 0.002904327441 | S149: 0 | T149: 0 | U149: 0 | AP149: 132 | AQ149: -0.009388224322 | AR149: -0.01304693732 | AS149: -0.02231267406 | AT149: 1 | AU149: 1 | AV149: 1
O150: 135 | P150: -0.001996034955 | Q150: 0.0002771518504 | R150: -0.001719436309 | S150: 0 | T150: 0 | U150: 0 | AP150: 133 | AQ150: -0.00305032444 | AR150: -0.007584621971 | AS150: -0.01061181085 | AT150: 1 | AU150: 1 | AV150: 1
O151: 136 | P151: -0.006049213478 | Q151: -0.00190034559 | R151: -0.007938063472 | S151: 1 | T151: 0 | U151: 0 | AP151: 134 | AQ151: -0.009082458433 | AR151: -0.009636328034 | AS151: -0.01863126492 | AT151: 1 | AU151: 1 | AV151: 1
O152: 137 | P152: 0.000539132947 | Q152: 0.003883034811 | R152: 0.00442426123 | S152: 0 | T152: 0 | U152: 0 | AP152: 135 | AQ152: -0.008680194891 | AR152: 0.006146308397 | AS152: -0.002587237648 | AT152: 0 | AU152: 0 | AV152: 0
O153: 138 | P153: -0.002866099512 | Q153: -0.0006550186136 | R153: -0.003519240778 | S153: 0 | T153: 0 | U153: 0 | AP153: 136 | AQ153: -0.01016273887 | AR153: 0.0101694775 | AS153: -9.661111226e-05 | AT153: 0 | AU153: 0 | AV153: 0
O154: 139 | P154: 0.003319403273 | Q154: 0.003775973338 | R154: 0.00710791059 | S154: 0 | T154: 0 | U154: 0 | AP154: 137 | AQ154: -0.01168866184 | AR154: -0.004267849095 | AS154: -0.01590662549 | AT154: 1 | AU154: 0 | AV154: 0
O155: 140 | P155: -0.002498235065 | Q155: -0.005033787733 | R155: -0.007519447213 | S155: 1 | T155: 1 | U155: 1 | AP155: 138 | AQ155: -0.00886788822 | AR155: 0.01973652047 | AS155: 0.01069361099 | AT155: 0 | AU155: 0 | AV155: 0
O156: 141 | P156: -0.0004564427435 | Q156: 0.005485559944 | R156: 0.005026613356 | S156: 0 | T156: 0 | U156: 0 | AP156: 139 | AQ156: -0.01174276075 | AR156: -0.0136697132 | AS156: -0.02525195378 | AT156: 1 | AU156: 1 | AV156: 1
O157: 142 | P157: 0.001015488613 | Q157: 0.001203330953 | R157: 0.002220041535 | S157: 0 | T157: 0 | U157: 0 | AP157: 140 | AQ157: -0.008151266977 | AR157: 0.009896354164 | AS157: 0.001664419362 | AT157: 0 | AU157: 0 | AV157: 0
O158: 143 | P158: 0.003546804619 | Q158: 0.003225447414 | R158: 0.006783692065 | S158: 0 | T158: 0 | U158: 0 | AP158: 141 | AQ158: -0.0102678462 | AR158: 0.002459764465 | AS158: -0.007833338214 | AT158: 1 | AU158: 0 | AV158: 0
O159: 144 | P159: 0.001521842952 | Q159: 0.0008915930907 | R159: 0.002414792907 | S159: 0 | T159: 0 | U159: 0 | AP159: 142 | AQ159: -0.007499224423 | AR159: -0.00347080328 | AS159: -0.01094399937 | AT159: 1 | AU159: 0 | AV159: 0
O160: 145 | P160: -0.001722570182 | Q160: 0.003738944808 | R160: 0.002009934031 | S160: 0 | T160: 0 | U160: 0 | AP160: 143 | AQ160: -0.002903224808 | AR160: -0.01908799587 | AS160: -0.02193580393 | AT160: 1 | AU160: 1 | AV160: 1
O161: 146 | P161: -0.001147554911 | Q161: -0.0007896445691 | R161: -0.00193629332 | S161: 0 | T161: 0 | U161: 0 | AP161: 144 | AQ161: -0.007444772621 | AR161: -0.004150350758 | AS161: -0.01156422496 | AT161: 1 | AU161: 0 | AV161: 0
O162: 147 | P162: 0.002793624385 | Q162: -0.001114852699 | R162: 0.001675657206 | S162: 0 | T162: 0 | U162: 0 | AP162: 145 | AQ162: -0.004701586048 | AR162: 0.01815850318 | AS162: 0.01337154336 | AT162: 0 | AU162: 0 | AV162: 0
O163: 148 | P163: 0.0001773005897 | Q163: 0.001842497292 | R163: 0.002020124558 | S163: 0 | T163: 0 | U163: 0 | AP163: 146 | AQ163: -0.009840358034 | AR163: -9.928027161e-05 | AS163: -0.009938661352 | AT163: 1 | AU163: 0 | AV163: 0
O164: 149 | P164: 0.00211338336 | Q164: -0.003327592091 | R164: -0.001221241209 | S164: 0 | T164: 0 | U164: 0 | AP164: 147 | AQ164: -0.006672577171 | AR164: 0.007596866299 | AS164: 0.0008735984522 | AT164: 0 | AU164: 0 | AV164: 0
O165: 150 | P165: 0.0007275060812 | Q165: 0.0002649374598 | R165: 0.0009926362846 | S165: 0 | T165: 0 | U165: 0 | AP165: 148 | AQ165: -0.007070665103 | AR165: -0.006761704806 | AS165: -0.01378456016 | AT165: 1 | AU165: 1 | AV165: 1
O166: 151 | P166: 0.0007036369846 | Q166: 0.0005677864108 | R166: 0.001271822911 | S166: 0 | T166: 0 | U166: 0 | AP166: 149 | AQ166: -0.0112662482 | AR166: -0.03406083118 | AS166: -0.0449433416 | AT166: 1 | AU166: 1 | AV166: 1
O167: 152 | P167: 0.001899297711 | Q167: 0.004813367131 | R167: 0.006721806859 | S167: 0 | T167: 0 | U167: 0 | AP167: 150 | AQ167: -0.008840557596 | AR167: -0.01305699434 | AS167: -0.02178212082 | AT167: 1 | AU167: 1 | AV167: 1
O168: 153 | P168: 0.0007754263663 | Q168: 0.001759427726 | R168: 0.002536218399 | S168: 0 | T168: 0 | U168: 0 | AP168: 151 | AQ168: -0.005450844474 | AR168: -0.001828186119 | AS168: -0.007269065435 | AT168: 1 | AU168: 0 | AV168: 0
O169: 154 | P169: 0.002435228918 | Q169: 0.0006596588397 | R169: 0.003096494179 | S169: 0 | T169: 0 | U169: 0 | AP169: 152 | AQ169: -0.007693311648 | AR169: -0.01593719907 | AS169: -0.02350790088 | AT169: 1 | AU169: 1 | AV169: 1
O170: 155 | P170: -0.0004916075264 | Q170: -0.002342469485 | R170: -0.002832925435 | S170: 0 | T170: 0 | U170: 0 | AP170: 153 | AQ170: -0.007825037353 | AR170: 0.009970049565 | AS170: 0.002066996201 | AT170: 0 | AU170: 0 | AV170: 0
O171: 156 | P171: 0.00130582856 | Q171: 0.0003603732918 | R171: 0.001666672438 | S171: 0 | T171: 0 | U171: 0 | AP171: 154 | AQ171: -0.005453488304 | AR171: -0.009021460065 | AS171: -0.01442574994 | AT171: 1 | AU171: 1 | AV171: 1
O172: 157 | P172: -0.002564996714 | Q172: 0.003524967429 | R172: 0.0009509291851 | S172: 0 | T172: 0 | U172: 0 | AP172: 155 | AQ172: -0.0100485063 | AR172: 0.0112901181 | AS172: 0.001128162972 | AT172: 0 | AU172: 0 | AV172: 0
O173: 158 | P173: 0.001451113601 | Q173: 0.001118912875 | R173: 0.002571650146 | S173: 0 | T173: 0 | U173: 0 | AP173: 156 | AQ173: -0.00682291611 | AR173: 0.01032898816 | AS173: 0.003435598228 | AT173: 0 | AU173: 0 | AV173: 0
O174: 159 | P174: 0.001390961594 | Q174: 0.002323742551 | R174: 0.003717936382 | S174: 0 | T174: 0 | U174: 0 | AP174: 157 | AQ174: -0.01062603652 | AR174: 0.003917463701 | AS174: -0.006750199929 | AT174: 1 | AU174: 0 | AV174: 0
O175: 160 | P175: 0.002416842502 | Q175: -0.003125389926 | R175: -0.0007161009988 | S175: 0 | T175: 0 | U175: 0 | AP175: 158 | AQ175: -0.008383868121 | AR175: -0.01204056309 | AS175: -0.02032348472 | AT175: 1 | AU175: 1 | AV175: 1
O176: 161 | P176: -0.002268230863 | Q176: -0.004864006762 | R176: -0.007121204935 | S176: 1 | T176: 0 | U176: 0 | AP176: 159 | AQ176: -0.01091277461 | AR176: -0.0210333811 | AS176: -0.03171662316 | AT176: 1 | AU176: 1 | AV176: 1
O177: 162 | P177: -0.002081980845 | Q177: -0.000844369818 | R177: -0.002924592702 | S177: 0 | T177: 0 | U177: 0 | AP177: 160 | AQ177: -0.009757401958 | AR177: 0.00472716357 | AS177: -0.005076363222 | AT177: 1 | AU177: 0 | AV177: 0
O178: 163 | P178: -0.002802768245 | Q178: -0.001097458948 | R178: -0.00389715127 | S178: 0 | T178: 0 | U178: 0 | AP178: 161 | AQ178: -0.008287525203 | AR178: -0.03275324387 | AS178: -0.04076932574 | AT178: 1 | AU178: 1 | AV178: 1
O179: 164 | P179: -0.003564928328 | Q179: 0.002638035573 | R179: -0.0009362971628 | S179: 0 | T179: 0 | U179: 0 | AP179: 162 | AQ179: -0.01018922979 | AR179: 0.00486026405 | AS179: -0.005378488087 | AT179: 1 | AU179: 0 | AV179: 0
O180: 165 | P180: 0.00163687168 | Q180: 0.003950598113 | R180: 0.005593936415 | S180: 0 | T180: 0 | U180: 0 | AP180: 163 | AQ180: -0.008450531028 | AR180: -0.007741987619 | AS180: -0.01612709474 | AT180: 1 | AU180: 1 | AV180: 1
O181: 166 | P181: -0.0005310628683 | Q181: 0.005439424583 | R181: 0.004905473038 | S181: 0 | T181: 0 | U181: 0 | AP181: 164 | AQ181: -0.007490297077 | AR181: 0.01059092484 | AS181: 0.003021298586 | AT181: 0 | AU181: 0 | AV181: 0
O182: 167 | P182: -0.00164425604 | Q182: 0.001635051322 | R182: -1.189316112e-05 | S182: 0 | T182: 0 | U182: 0 | AP182: 165 | AQ182: -0.006546836361 | AR182: 0.02129373599 | AS182: 0.01460749303 | AT182: 0 | AU182: 0 | AV182: 0
O183: 168 | P183: 0.001787619821 | Q183: 0.001469075072 | R183: 0.003259321041 | S183: 0 | T183: 0 | U183: 0 | AP183: 166 | AQ183: -0.006894667944 | AR183: 0.00341222432 | AS183: -0.003505969778 | AT183: 0 | AU183: 0 | AV183: 0
O184: 169 | P184: -0.003522959154 | Q184: -0.005536636917 | R184: -0.009040090725 | S184: 1 | T184: 1 | U184: 1 | AP184: 167 | AQ184: -0.006968744766 | AR184: 0.01642100298 | AS184: 0.009337824432 | AT184: 0 | AU184: 0 | AV184: 0
O185: 170 | P185: -0.002318229338 | Q185: 0.0008527745097 | R185: -0.001467431756 | S185: 0 | T185: 0 | U185: 0 | AP185: 168 | AQ185: -0.006709660612 | AR185: 0.007567790862 | AS185: 0.0008073529418 | AT185: 0 | AU185: 0 | AV185: 0
O186: 171 | P186: -0.003594237486 | Q186: -0.001194660743 | R186: -0.004784604334 | S186: 0 | T186: 0 | U186: 0 | AP186: 169 | AQ186: -0.002643706851 | AR186: 0.0195774356 | AS186: 0.01688197175 | AT186: 0 | AU186: 0 | AV186: 0
O187: 172 | P187: -0.0003728839877 | Q187: -0.00410978227 | R187: -0.004481133786 | S187: 0 | T187: 0 | U187: 0 | AP187: 170 | AQ187: -0.01113758662 | AR187: -0.009419224616 | AS187: -0.0204519038 | AT187: 1 | AU187: 1 | AV187: 1
O188: 173 | P188: 0.003255063057 | Q188: 0.001110983884 | R188: 0.004369663263 | S188: 0 | T188: 0 | U188: 0 | AP188: 171 | AQ188: -0.008681696461 | AR188: -0.01675584976 | AS188: -0.02529207702 | AT188: 1 | AU188: 1 | AV188: 1
O189: 174 | P189: -0.001531064057 | Q189: -0.0005085316171 | R189: -0.00203881708 | S189: 0 | T189: 0 | U189: 0 | AP189: 172 | AQ189: -0.006737405578 | AR189: 0.01400312 | AS189: 0.00717136972 | AT189: 0 | AU189: 0 | AV189: 0
O190: 175 | P190: -0.005271087446 | Q190: -0.0009964194215 | R190: -0.006262254654 | S190: 1 | T190: 0 | U190: 0 | AP190: 173 | AQ190: -0.009327482416 | AR190: -0.007918715289 | AS190: -0.01717233603 | AT190: 1 | AU190: 1 | AV190: 1
O191: 176 | P191: -6.470066286e-05 | Q191: 0.001943023773 | R191: 0.001878197395 | S191: 0 | T191: 0 | U191: 0 | AP191: 174 | AQ191: -0.01240196888 | AR191: -0.007534417513 | AS191: -0.01984294478 | AT191: 1 | AU191: 1 | AV191: 1
O192: 177 | P192: 0.001478055785 | Q192: 3.750608784e-05 | R192: 0.001515617309 | S192: 0 | T192: 0 | U192: 0 | AP192: 175 | AQ192: -0.009376106808 | AR192: -0.004976584086 | AS192: -0.01430602991 | AT192: 1 | AU192: 0 | AV192: 0
O193: 178 | P193: -0.0007307346335 | Q193: -0.0007685208878 | R193: -0.001498693936 | S193: 0 | T193: 0 | U193: 0 | AP193: 176 | AQ193: -0.005959850518 | AR193: 0.02204294948 | AS193: 0.01595172628 | AT193: 0 | AU193: 0 | AV193: 0
O194: 179 | P194: -0.002846679494 | Q194: -0.001269705765 | R194: -0.004112770814 | S194: 0 | T194: 0 | U194: 0 | AP194: 177 | AQ194: -0.007237211141 | AR194: 0.00777544745 | AS194: 0.0004819637537 | AT194: 0 | AU194: 0 | AV194: 0
O195: 180 | P195: 0.003652536701 | Q195: 0.0003705699445 | R195: 0.004024460166 | S195: 0 | T195: 0 | U195: 0 | AP195: 178 | AQ195: -0.008347552387 | AR195: 0.002172167012 | AS195: -0.006193517652 | AT195: 1 | AU195: 0 | AV195: 0
O196: 181 | P196: 0.002529037379 | Q196: -0.001431531027 | R196: 0.001093885957 | S196: 0 | T196: 0 | U196: 0 | AP196: 179 | AQ196: -0.00926993852 | AR196: -0.01995682379 | AS196: -0.02904176379 | AT196: 1 | AU196: 1 | AV196: 1
O197: 182 | P197: -0.001806803847 | Q197: 0.003161399019 | R197: 0.001348883144 | S197: 0 | T197: 0 | U197: 0 | AP197: 180 | AQ197: -0.01170014793 | AR197: -0.03786859933 | AS197: -0.04912567904 | AT197: 1 | AU197: 1 | AV197: 1
O198: 183 | P198: 0.001066163045 | Q198: 0.000610267831 | R198: 0.001677081521 | S198: 0 | T198: 0 | U198: 0 | AP198: 181 | AQ198: -0.002704073813 | AR198: -0.01995395657 | AS198: -0.02260407341 | AT198: 1 | AU198: 1 | AV198: 1
O199: 184 | P199: 0.003655701221 | Q199: -0.002181784034 | R199: 0.001465941236 | S199: 0 | T199: 0 | U199: 0 | AP199: 182 | AQ199: -0.009726741584 | AR199: 0.006314037811 | AS199: -0.003474118787 | AT199: 0 | AU199: 0 | AV199: 0
O200: 185 | P200: 0.0004558200676 | Q200: 0.0006091717662 | R200: 0.001065269507 | S200: 0 | T200: 0 | U200: 0 | AP200: 183 | AQ200: -0.005993973814 | AR200: -0.005939134448 | AS200: -0.01189750925 | AT200: 1 | AU200: 1 | AV200: 1
O201: 186 | P201: -0.0005165053204 | Q201: -0.002336303544 | R201: -0.002851602152 | S201: 0 | T201: 0 | U201: 0 | AP201: 184 | AQ201: -0.007121310531 | AR201: -0.01453317974 | AS201: -0.02155099498 | AT201: 1 | AU201: 1 | AV201: 1
O202: 187 | P202: 0.0001586959395 | Q202: -0.003551144696 | R202: -0.003393012309 | S202: 0 | T202: 0 | U202: 0 | AP202: 185 | AQ202: -0.006991878325 | AR202: -0.01905827874 | AS202: -0.0259169039 | AT202: 1 | AU202: 1 | AV202: 1
... 923 more rows

Sheet Vol Estimates (hidden)
I1: Traditional VC-V as a check
D2: # Mgrs | E2: Gross TE | F2: Net TE | G2: TE Cont.
B3: Australian Equities | C3: 0.25 | D3: 4 | E3: 0.03 | F3: =SQRT(D3*((E3/D3)^2)) -> 0.015 | G3: =C3*F3 -> 0.00375 | I3: 1 | J3: 0 | K3: 0 | L3: 0 | M3: 0 | N3: 0 | O3: 0 | Q3: =SUMPRODUCT($G$3:$G$9,I3:I9) -> 0.00375
B4: Global Equities | C4: 0.25 | D4: 4 | E4: 0.03 | F4: =SQRT(D4*((E4/D4)^2)) -> 0.015 | G4: =C4*F4 -> 0.00375 | I4: 0 | J4: 1 | K4: 0 | L4: 0 | M4: 0 | N4: 0 | O4: 0 | Q4: =SUMPRODUCT($G$3:$G$9,J3:J9) -> 0.00375
B5: Unlisted Property | C5: 0.1 | D5: 1 | E5: 0.03 | F5: 0.03 | G5: 0.003 | I5: 0 | J5: 0 | K5: 1 | L5: 0 | M5: 0 | N5: 0 | O5: 0 | Q5: =SUMPRODUCT($G$3:$G$9,K3:K9) -> 0.003
B6: Unlisted Infrastructure | C6: 0.1 | D6: 1 | E6: 0.03 | F6: 0.03 | G6: 0.003 | I6: 0 | J6: 0 | K6: 0 | L6: 1 | M6: 0 | N6: 0 | O6: 0 | Q6: =SUMPRODUCT($G$3:$G$9,L3:L9) -> 0.003
B7: Credit | C7: 0.05 | D7: 1 | E7: 0.02 | F7: 0.02 | G7: 0.001 | I7: 0 | J7: 0 | K7: 0 | L7: 0 | M7: 1 | N7: 0 | O7: 0 | Q7: =SUMPRODUCT($G$3:$G$9,M3:M9) -> 0.001
B8: Fixed Income | C8: 0.2 | D8: 2 | E8: 0.01 | F8: 0.007071067812 | G8: 0.001414213562 | I8: 0 | J8: 0 | K8: 0 | L8: 0 | M8: 0 | N8: 1 | O8: 0 | Q8: =SUMPRODUCT($G$3:$G$9,N3:N9) -> 0.001414213562
B9: Cash | C9: 0.05 | D9: 1 | E9: 0 | F9: 0 | G9: 0 | I9: 0 | J9: 0 | K9: 0 | L9: 0 | M9: 0 | N9: 0 | O9: 1 | Q9: =SUMPRODUCT($G$3:$G$9,O3:O9) -> 0
D11: Gross Volatility: | F11: =SUMPRODUCT(C3:C9,F3:F9) -> 0.01591421356 | Q11: =SQRT(SUMPRODUCT(G3:G9,Q3:Q9)) -> 0.007008922884
D12: Net Volatility: | F12: =SQRT((C3*F3)^2+(C4*F4)^2+(C5*F5)^2+(C6*F6)^2+(C7*F7)^2+(C8*F8)^2+(C9*F9)^2) -> 0.007008922884

Sheet TE Estimates (hidden)
D2: Allocation | E2: TE | F2: Gross TE contribution | I2: Unlisted Property | J2: Unlisted Infrastructure | K2: High Yield
C3: Unlisted Property | D3: 0.1 | E3: 0.2 | F3: =D3*E3 -> 0.02 | H3: Unlisted Property | I3: 1 | J3: 0.5 | K3: 0 | M3: =SUMPRODUCT($F$3:$F$5,I3:I5) -> 0.03
C4: Unlisted Infrastructure | D4: 0.1 | E4: 0.2 | F4: =D4*E4 -> 0.02 | H4: Unlisted Infrastructure | I4: 0.5 | J4: 1 | K4: 0 | M4: =SUMPRODUCT($F$3:$F$5,J3:J5) -> 0.03
C5: High Yield | D5: 0.1 | E5: 0.09 | F5: 0.009 | H5: High Yield | I5: 0 | J5: 0 | K5: 1 | M5: =SUMPRODUCT($F$3:$F$5,K3:K5) -> 0.009
E7: Gross Total TE | F7: =SUM(F3:F5) -> 0.049 | M7: =SQRT(SUMPRODUCT(F3:F5,M3:M5)) -> 0.03579106034
E8: Net Total TE | F8: =M7 -> 0.03579106034
